bitfinex/quotes_SOLUSD_20260224
["timestamp","ask_amount","ask_price","bid_price","bid_amount"]
[1771953056502,0.49176784,78.476,78.426,0.47102138]
[1771953057103,0.49176784,78.476,78.431,0.47102138]
[1771953059100,12.74388612,78.469,78.427,31.87677713]
[1771953059291,0.49176784,78.468,78.427,31.87677713]
[1771953059786,0.49176784,78.468,78.423,12.7513612]
[1771953060386,0.49176784,78.468,78.423,13.22238258]
[1771953060587,0.49176784,78.468,78.424,0.47102138]
[1771953060984,0.49176784,78.468,78.424,0.20376062]
[1771953061507,0.49176784,78.466,78.425,12.75103602]
[1771953063594,0.49176784,78.464,78.426,0.47102138]
[1771953064392,0.49176784,78.478,78.426,0.47102138]
[1771953065505,13.23475529,78.475,78.431,0.47102138]
[1771953066188,0.49176784,78.474,78.431,0.47102138]
[1771953068093,0.59176784,78.48,78.433,0.47102138]
[1771953068410,0.49176784,78.475,78.433,0.47102138]
[1771953069109,0.49176784,78.475,78.437,0.47102138]
[1771953069315,0.49176784,78.475,78.439,0.47102138]
[1771953069999,0.49176784,78.475,78.446,0.2]
[1771953070712,0.49176784,78.475,78.447,0.47102138]
[1771953070914,0.49176784,78.475,78.446,0.2]
[1771953071102,0.12883,78.476,78.446,0.2]
[1771953071103,0.49176784,78.473,78.446,0.2]
[1771953071301,0.49176784,78.473,78.448,0.47102138]
[1771953072131,0.49176784,78.472,78.446,0.2]
[1771953073608,0.49176784,78.47,78.446,0.2]
[1771953073804,0.49176784,78.47,78.436,0.2]
[1771953074004,0.49176784,78.469,78.437,12.74908525]
[1771953074211,0.49176784,78.469,78.438,0.47102138]
[1771953075113,0.49176784,78.469,78.446,0.2]
[1771953075308,0.49176784,78.469,78.436,0.2]
[1771953075516,0.49176784,78.469,78.436,12.94917336]
[1771953075714,95.58036395,78.468,78.396,0.47102138]
[1771953076018,0.29176784,78.449,78.398,0.47102138]
[1771953076593,95.58036395,78.468,78.383,0.47102138]
[1771953076594,13.39245183,78.44,78.383,0.47102138]
[1771953076794,317.5900508,78.468,78.357,63.81050831]
[1771953076795,13.39245183,78.42,78.374,0.47102138]
[1771953077714,13.39245183,78.42,78.345,67.65814189]
[1771953077715,44.63204069,78.419,78.376,0.47102138]
[1771953077914,0.46726076,78.418,78.376,0.47102138]
[1771953078418,0.46726076,78.409,78.375,12.75917065]
[1771953078796,0.46726076,78.409,78.371,12.75970319]
[1771953079117,0.46726076,78.399,78.357,0.47102138]
[1771953079420,0.46726076,78.399,78.36,12.76149001]
[1771953080707,0.46726076,78.397,78.361,0.47102138]
[1771953080912,0.46726076,78.411,78.361,0.47102138]
[1771953081309,0.46726076,78.409,78.361,0.47102138]
[1771953081906,0.46726076,78.399,78.353,0.47102138]
[1771953082627,0.46726076,78.398,78.353,0.47102138]
[1771953083228,0.2,78.389,78.354,12.76259029]
[1771953083404,0.2,78.389,78.347,0.47211209]
[1771953083724,0.2,78.399,78.348,0.47211209]
[1771953084128,0.2,78.399,78.345,0.47211209]
[1771953085722,0.2,78.399,78.347,0.49315067]
[1771953086021,0.46726076,78.421,78.346,159.54866871]
[1771953086022,0.46726076,78.421,78.351,0.49315067]
[1771953086223,12.74924779,78.436,78.356,0.49315067]
[1771953086423,0.46726076,78.447,78.363,0.49315067]
[1771953086931,0.46726076,78.447,78.36,3.69383402]
[1771953086932,0.46726076,78.447,78.368,0.49315067]
[1771953087513,0.46726076,78.464,78.377,0.49315067]
[1771953087829,12.74486063,78.463,78.391,0.49315067]
[1771953088028,0.46726076,78.462,78.391,0.49315067]
[1771953089826,12.74430376,78.467,78.396,0.49315067]
[1771953090010,0.46726076,78.466,78.396,0.49315067]
[1771953091938,0.46726076,78.464,78.401,0.49315067]
[1771953094233,0.46726076,78.471,78.406,0.49315067]
[1771953094824,0.46726076,78.469,78.406,0.49315067]
[1771953095019,0.46726076,78.459,78.406,0.49315067]
[1771953096626,0.46726076,78.457,78.408,0.49315067]
[1771953099237,0.46726076,78.449,78.401,13.24809002]
[1771953099423,0.46726076,78.449,78.402,0.49315067]
[1771953099621,0.46726076,78.449,78.401,12.75493935]
[1771953099818,0.46726076,78.439,78.401,12.75493935]
[1771953100829,0.46726076,78.455,78.402,0.49315067]
[1771953101236,0.46726076,78.455,78.404,0.49315067]
[1771953101628,12.74632268,78.454,78.404,0.49315067]
[1771953102221,0.46726076,78.455,78.404,0.49315067]
[1771953103346,0.46726076,78.455,78.406,0.49315067]
[1771953103839,12.74481127,78.464,78.406,0.49315067]
[1771953104344,0.46726076,78.463,78.406,0.49315067]
[1771953105547,0.46726076,78.461,78.408,0.49315067]
[1771953106126,0.46726076,78.459,78.408,0.49315067]
[1771953106947,13.39571566,78.44,78.401,12.75486185]
[1771953107148,0.46726076,78.439,78.401,12.75486185]
[1771953107441,0.46726076,78.439,78.402,0.49315067]
[1771953107843,0.46726076,78.437,78.403,12.75461398]
[1771953108052,0.46726076,78.441,78.404,0.49315067]
[1771953108549,31.86296663,78.461,78.404,0.49315067]
[1771953108843,0.46726076,78.457,78.404,0.49315067]
[1771953109142,12.74551039,78.459,78.404,0.49315067]
[1771953109340,12.74551039,78.459,78.403,108.41421883]
[1771953109341,12.74551039,78.459,78.407,0.49315067]
[1771953110137,13.21212809,78.463,78.411,3.69383402]
[1771953110344,0.46726076,78.463,78.412,0.49315067]
[1771953110543,0.46726076,78.473,78.412,0.49315067]
[1771953110743,0.46726076,78.472,78.412,0.49315067]
[1771953111838,13.49571566,78.48,78.412,0.49315067]
[1771953111839,0.46726076,78.477,78.412,0.49315067]
[1771953112042,0.46726076,78.474,78.412,0.49315067]
[1771953112244,0.46726076,78.472,78.414,0.49315067]
[1771953112435,44.60132783,78.473,78.406,0.49315067]
[1771953112436,0.46726076,78.459,78.406,0.49315067]
[1771953112637,0.46726076,78.449,78.406,0.49315067]
[1771953112856,0.46726076,78.439,78.375,0.49315067]
[1771953113545,0.46726076,78.439,78.378,0.49315067]
[1771953114554,0.46726076,78.439,78.38,0.49315067]
[1771953114748,0.46726076,78.439,78.383,0.49315067]
[1771953114949,13.21609362,78.439,78.383,0.49315067]
[1771953115144,0.46726076,78.438,78.383,0.49315067]
[1771953115350,0.46726076,78.438,78.385,0.45642135]
[1771953116548,0.46726076,78.438,78.387,0.45642135]
[1771953117164,0.46726076,78.436,78.387,0.45642135]
[1771953117750,13.39571566,78.43,78.386,44.6508305]
[1771953117952,0.46726076,78.429,78.387,0.45642135]
[1771953119932,0.46726076,78.429,78.388,44.64969127]
[1771953120138,13.21768073,78.429,78.389,0.45642135]
[1771953120450,0.46726076,78.428,78.389,0.45642135]
[1771953121557,0.46726076,78.426,78.39,12.75672917]
[1771953122659,0.46726076,78.426,78.391,0.45642135]
[1771953123538,0.46726076,78.424,78.382,32.35148739]
[1771953123949,0.46726076,78.419,78.374,12.75918664]
[1771953124253,0.46726076,78.419,78.375,0.45642135]
[1771953124452,13.39571566,78.41,78.37,12.75987865]
[1771953124650,13.39571566,78.41,78.359,0.45642135]
[1771953124651,0.46726076,78.409,78.359,0.45642135]
[1771953124849,0.46726076,78.389,78.341,12.76470813]
[1771953125041,0.46726076,78.369,78.331,13.22266125]
[1771953125247,0.46726076,78.369,78.331,12.7662399]
[1771953125453,44.66108615,78.368,78.331,12.7662399]
[1771953125645,0.26726076,78.367,78.33,0.2]
[1771953126047,0.26726076,78.367,78.332,0.45642135]
[1771953126438,0.26726076,78.367,78.331,12.76633772]
[1771953126655,13.39571566,78.36,78.319,0.45642135]
[1771953126843,44.66108615,78.368,78.319,0.45642135]
[1771953126844,0.26726076,78.359,78.319,0.45642135]
[1771953127043,13.02757109,78.368,78.319,0.45642135]
[1771953127361,0.26726076,78.367,78.319,0.45642135]
[1771953127666,0.26726076,78.367,78.31,0.2]
[1771953127667,0.26726076,78.349,78.311,12.76959814]
[1771953128254,0.26726076,78.339,78.31,0.2]
[1771953128461,13.39571566,78.35,78.311,0.45642135]
[1771953128770,0.26726076,78.351,78.311,0.45642135]
[1771953128954,0.26726076,78.359,78.311,0.45642135]
[1771953129147,0.26726076,78.365,78.311,0.45642135]
[1771953129545,0.26726076,78.359,78.31,0.2]
[1771953129844,0.26726076,78.339,78.31,0.2]
[1771953130670,13.39571566,78.33,78.29,0.65642135]
[1771953130883,0.26726075,78.329,78.29,0.65642135]
[1771953131172,0.26726075,78.329,78.291,12.77286022]
[1771953131377,0.26726075,78.356,78.295,0.45642135]
[1771953131547,0.26726075,78.354,78.299,3.69383402]
[1771953131746,0.26726075,78.354,78.3,0.45642135]
[1771953133749,0.26726075,78.352,78.302,0.45642135]
[1771953133953,0.26726075,78.339,78.302,0.45642135]
[1771953134149,197.82267429,78.353,78.29,0.2]
[1771953134354,0.26726075,78.329,78.291,0.45642135]
[1771953135460,0.26726075,78.329,78.291,13.22928157]
[1771953135777,5.36086188,78.361,78.292,0.45642135]
[1771953135958,0.26726075,78.372,78.297,0.45642135]
[1771953136367,0.26726075,78.392,78.307,5.36086188]
[1771953136581,0.26726075,78.392,78.32,0.45642135]
[1771953136875,0.26726075,78.389,78.32,0.45642135]
[1771953137474,0.26726075,78.379,78.32,0.45642135]
[1771953138263,0.26726075,78.379,78.322,0.45642135]
[1771953138872,12.75868228,78.378,78.322,0.45642135]
[1771953139072,0.26726075,78.377,78.322,0.45642135]
[1771953139281,12.75054827,78.428,78.324,3.69383402]
[1771953139577,12.75054827,78.428,78.339,3.69383402]
[1771953139578,0.26726075,78.428,78.339,3.69383402]
[1771953139758,0.26726075,78.428,78.347,3.69383402]
[1771953139960,0.26726075,78.428,78.344,0.45642135]
[1771953140576,0.26726075,78.426,78.349,0.45642135]
[1771953140962,0.26726075,78.426,78.35,0.45642135]
[1771953142863,0.26726075,78.426,78.355,0.45642135]
[1771953143080,0.26726075,78.436,78.362,0.45642135]
[1771953144875,0.26726075,78.47,78.386,0.49295532]
[1771953145052,0.26726075,78.469,78.392,0.49295532]
[1771953146876,0.26726075,78.467,78.397,0.48698006]
[1771953147567,0.26726075,78.475,78.402,0.48698006]
[1771953148367,13.39571566,78.47,78.402,0.48698006]
[1771953148569,0.26726075,78.469,78.402,0.48698006]
[1771953149171,12.74404852,78.468,78.403,44.64114893]
[1771953149380,0.26726075,78.467,78.407,0.48698006]
[1771953150881,0.26726075,78.459,78.407,0.48698006]
[1771953151495,12.74567284,78.458,78.412,0.48698006]
[1771953151793,0.26726075,78.459,78.412,0.48698006]
[1771953152184,0.26726075,78.458,78.412,0.48698006]
[1771953153490,0.26726075,78.458,78.414,0.48698006]
[1771953153986,0.26726075,78.457,78.414,0.48698006]
[1771953154169,0.26726075,78.457,78.413,12.75298738]
[1771953155584,0.26726075,78.449,78.407,0.48698006]
[1771953156081,0.26726075,78.449,78.406,44.63944084]
[1771953156082,0.26726075,78.449,78.406,12.75412595]
[1771953156290,0.26726075,78.439,78.406,12.75412595]
[1771953157170,13.39571566,78.44,78.406,12.75412595]
[1771953157500,0.26726075,78.567,78.417,0.48698006]
[1771953157666,0.26726075,78.565,78.476,6.65503202]
[1771953157868,0.26726075,78.559,78.481,0.48698006]
[1771953158084,0.26726075,78.559,78.483,0.48698006]
[1771953159683,0.26726075,78.557,78.488,0.48698006]
[1771953160365,0.26726075,78.549,78.488,0.48698006]
[1771953161785,0.26726075,78.547,78.493,0.48698006]
[1771953162271,12.7310689,78.548,78.493,0.48698006]
[1771953162272,0.26726075,78.539,78.493,0.48698006]
[1771953162467,0.26726075,78.529,78.489,44.59223584]
[1771953163784,12.73425537,78.529,78.489,31.85159703]
[1771953163971,0.26726075,78.528,78.489,31.85159703]
[1771953165485,12.73425537,78.529,78.485,12.74128814]
[1771953165486,0.26726075,78.519,78.485,12.74128814]
[1771953165872,0.26726075,78.519,78.477,0.48698006]
[1771953166679,0.26726075,78.517,78.477,0.48698006]
[1771953167399,12.73593316,78.518,78.476,12.74274937]
[1771953167400,0.26726075,78.509,78.476,12.74274937]
[1771953167573,0.26726075,78.509,78.471,12.74342577]
[1771953167769,0.26726075,78.509,78.468,0.48698006]
[1771953168579,0.26726075,78.507,78.469,12.74388612]
[1771953169289,0.26726075,78.499,78.469,12.74388612]
[1771953169480,0.26726075,78.499,78.465,12.74453124]
[1771953169873,0.26726075,78.499,78.466,0.48698006]
[1771953170587,0.26726075,78.509,78.468,0.48698006]
[1771953170783,13.00465391,78.509,78.468,0.48698006]
[1771953170985,0.26726075,78.508,78.468,0.48698006]
[1771953171688,0.26726075,78.499,78.453,0.48698006]
[1771953172477,12.73917806,78.498,78.455,0.48698006]
[1771953173094,0.26726075,78.497,78.455,0.48698006]
[1771953173398,13.36030803,78.49,78.454,12.74632268]
[1771953173707,12.73431132,78.528,78.455,0.48698006]
[1771953174002,0.26726075,78.509,78.455,0.48698006]
[1771953174181,13.36030803,78.5,78.455,0.48698006]
[1771953174373,0.26726075,78.499,78.455,0.48698006]
[1771953174594,0.26726075,78.497,78.457,0.48698006]
[1771953175876,0.26726075,78.497,78.456,12.74599775]
[1771953176191,0.26726075,78.489,78.452,12.74663756]
[1771953176900,0.26726075,78.487,78.452,0.49484265]
[1771953178776,0.26726075,78.485,78.453,12.74648515]
[1771953179195,13.36030803,78.49,78.453,12.74648515]
[1771953179196,0.26726075,78.494,78.454,0.49484265]
[1771953180695,12.73966494,78.495,78.438,0.49484265]
[1771953180696,0.26726075,78.489,78.438,0.49484265]
[1771953180896,0.26726075,78.489,78.399,51.02063605]
[1771953180897,0.26726075,78.469,78.435,12.74931713]
[1771953181087,0.26726075,78.469,78.436,0.49484265]
[1771953181804,0.26726075,78.469,78.43,12.75008045]
[1771953183008,0.26726075,78.467,78.43,12.75008045]
[1771953183683,0.26726075,78.467,78.431,0.49484265]
[1771953183883,12.74404852,78.468,78.431,0.49484265]
[1771953185500,0.26726075,78.469,78.432,12.749898]
[1771953185880,0.26726075,78.469,78.433,0.49484265]
[1771953187304,13.36030803,78.46,78.425,0.49484265]
[1771953187495,0.26726075,78.459,78.425,0.49484265]
[1771953189708,0.26726075,78.459,78.427,0.49484265]
[1771953190507,12.74567284,78.458,78.427,0.49484265]
[1771953191007,0.26726075,78.501,78.43,0.49484265]
[1771953191220,0.26726075,78.512,78.43,0.49484265]
[1771953192003,12.73706869,78.511,78.435,0.49484265]
[1771953192301,0.26726075,78.509,78.435,0.49484265]
[1771953193901,0.26726075,78.507,78.44,0.49484265]
[1771953195985,0.26726075,78.505,78.445,0.49484265]
[1771953198109,63.66941642,78.531,78.436,50.99699117]
[1771953198110,0.26726075,78.503,78.45,0.49484265]
[1771953198812,50.91408153,78.564,78.45,0.49484265]
[1771953198990,0.26726075,78.519,78.45,0.49484265]
[1771953199603,0.26726075,78.509,78.45,0.49484265]
[1771953200096,0.26726075,78.507,78.452,0.49484265]
[1771953202311,0.26726075,78.499,78.453,12.74648515]
[1771953202495,0.26726075,78.499,78.454,0.49484265]
[1771953203814,12.73917806,78.498,78.455,44.61156075]
[1771953204005,0.26726075,78.497,78.456,0.46953469]
[1771953206211,12.73917806,78.498,78.458,0.47684779]
[1771953206819,0.26726075,78.503,78.458,0.47684779]
[1771953207500,0.26726075,78.503,78.457,44.61042353]
[1771953207817,0.26726075,78.503,78.458,0.47684779]
[1771953208908,0.26726075,78.501,78.46,0.47684779]
[1771953210118,0.26726075,78.479,78.441,0.47684779]
[1771953210908,0.26726075,78.469,78.433,0.47684779]
[1771953211117,0.26726075,78.469,78.426,0.47684779]
[1771953212608,0.26726075,78.467,78.427,13.22755864]
[1771953213220,0.26726075,78.475,78.428,0.47684779]
[1771953213417,12.74307413,78.474,78.428,0.47684779]
[1771953213639,0.26726075,78.469,78.428,0.47684779]
[1771953213927,0.26726075,78.469,78.427,13.22755864]
[1771953214133,0.26726075,78.469,78.428,0.47684779]
[1771953214328,0.26726075,78.469,78.42,0.47684779]
[1771953214509,0.26726075,78.469,78.377,5.36086188]
[1771953214510,0.26726075,78.459,78.412,0.47684779]
[1771953214704,0.26726075,78.457,78.414,0.47684779]
[1771953216907,0.26726075,78.455,78.416,0.47684779]
[1771953217824,0.26726075,78.478,78.416,0.47684779]
[1771953218030,0.26726075,78.476,78.416,0.47684779]
[1771953219729,0.26726075,78.474,78.418,0.47684779]
[1771953222506,0.26726075,78.482,78.421,0.47684779]
[1771953222710,13.00903593,78.482,78.421,0.47684779]
[1771953223528,0.26726075,78.481,78.421,0.47684779]
[1771953223930,0.26726075,78.479,78.421,0.47684779]
[1771953225216,0.26726075,78.477,78.423,0.47684779]
[1771953226234,0.26726075,78.469,78.423,0.47684779]
[1771953227417,0.26726075,78.467,78.425,0.47684779]
[1771953228140,0.26726075,78.459,78.425,0.47684779]
[1771953228729,12.74404852,78.468,78.425,0.47684779]
[1771953229129,13.01130927,78.468,78.425,0.47684779]
[1771953229330,0.26726075,78.467,78.425,0.47684779]
[1771953229529,0.26726075,78.449,78.417,0.47684779]
[1771953229840,0.26726075,78.457,78.417,0.47684779]
[1771953231136,166.6,78.496,78.417,0.47684779]
[1771953231338,13.38853913,78.51,78.422,0.47684779]
[1771953231631,0.26726075,78.511,78.449,0.47684779]
[1771953232745,0.26726075,78.509,78.454,0.47684779]
[1771953234530,12.7375554,78.508,78.459,0.47684779]
[1771953234827,0.26726075,78.507,78.459,0.47684779]
[1771953235954,0.26726075,78.499,78.455,12.74616021]
[1771953236240,0.26726075,78.499,78.456,0.48399814]
[1771953236823,0.26726075,78.497,78.457,13.22983343]
[1771953237255,0.26726075,78.497,78.458,0.48399814]
[1771953237831,0.26726075,78.489,78.457,12.74583529]
[1771953238924,0.26726075,78.487,78.45,0.48399814]
[1771953239123,0.26726075,78.487,78.451,12.74681011]
[1771953239324,0.26726075,78.487,78.451,13.23080825]
[1771953240450,0.26726075,78.487,78.452,0.48399814]
[1771953240951,0.26726075,78.485,78.452,0.48399814]
[1771953241250,0.26726075,78.519,78.446,0.48399814]
[1771953241454,0.26726075,78.519,78.457,0.48399814]
[1771953243353,12.73593316,78.518,78.462,0.48399814]
[1771953244139,13.00319391,78.518,78.462,0.48399814]
[1771953244946,31.83562882,78.529,78.467,0.48399814]
[1771953244947,0.26726075,78.517,78.467,0.48399814]
[1771953245547,3.69383402,78.543,78.467,0.48399814]
[1771953245747,0.26726075,78.556,78.472,0.48399814]
[1771953246049,0.26726075,78.556,78.487,0.48399814]
[1771953248244,12.72620835,78.578,78.503,0.48399814]
[1771953248441,0.26726075,78.577,78.518,0.48399814]
[1771953248650,12.72554313,78.583,78.525,0.48399814]
[1771953248956,12.9920686,78.587,78.525,0.48399814]
[1771953249154,0.26726075,78.587,78.525,0.48399814]
[1771953250349,0.26726075,78.587,78.527,0.48399814]
[1771953250550,12.7259476,78.58,78.527,0.48399814]
[1771953251261,0.26726075,78.577,78.527,0.48399814]
[1771953252864,12.99379302,78.576,78.529,0.48399814]
[1771953253557,13.38853913,78.59,78.529,0.48399814]
[1771953253558,0.26726075,78.578,78.529,0.48399814]
[1771953253858,13.38853913,78.58,78.529,0.48399814]
[1771953254061,0.26726075,78.569,78.529,0.48399814]
[1771953254257,0.26726075,78.577,78.529,0.48399814]
[1771953254560,12.72620835,78.578,78.529,0.48399814]
[1771953254764,0.26726075,78.577,78.531,0.48399814]
[1771953256263,30.89290806,78.579,78.531,0.48399814]
[1771953257159,30.89290806,78.579,78.533,0.48399814]
[1771953258456,43.61905558,78.579,78.533,0.48399814]
[1771953259269,0.26726075,78.578,78.535,0.48399814]
[1771953261950,12.72637031,78.577,78.536,12.73301415]
[1771953262249,12.99363106,78.577,78.537,0.48399814]
[1771953263146,30.89290806,78.579,78.539,0.48399814]
[1771953265151,43.61900801,78.579,78.54,44.56327985]
[1771953265354,43.61900801,78.579,78.541,0.49978336]
[1771953266466,0.1,78.6,78.544,0.49978336]
[1771953266769,0.1,78.6,78.542,108.22235235]
[1771953266770,0.1,78.6,78.546,0.49978336]
[1771953268559,0.1,78.6,78.548,0.49978336]
[1771953269759,0.1,78.6,78.55,0.49978336]
[1771953269975,0.1,78.6,78.553,0.49978336]
[1771953270170,0.26726075,78.599,78.553,0.49978336]
[1771953270778,12.9902308,78.598,78.555,0.49978336]
[1771953271159,0.26726075,78.598,78.555,0.49978336]
[1771953271570,0.1,78.6,78.555,0.49978336]
[1771953272167,0.26726075,78.598,78.555,0.49978336]
[1771953272657,0.26726075,78.596,78.557,0.49978336]
[1771953274857,0.26726075,78.596,78.559,0.49978336]
[1771953275263,0.26726075,78.596,78.558,44.55306906]
[1771953275264,0.26726075,78.594,78.558,12.7294483]
[1771953275564,0.26726075,78.594,78.559,0.49978336]
[1771953275987,0.26726075,78.594,78.558,12.7294483]
[1771953276371,0.26726075,78.592,78.555,0.49978336]
[1771953278376,13.38853913,78.57,78.54,0.49978336]
[1771953278579,13.65579988,78.57,78.54,0.49978336]
[1771953278788,0.26726075,78.569,78.54,0.49978336]
[1771953279979,0.26726075,78.59,78.54,0.49978336]
[1771953280165,13.48853913,78.6,78.54,0.49978336]
[1771953280166,0.26726075,78.597,78.54,0.49978336]
[1771953280366,0.1,78.6,78.542,0.49978336]
[1771953280367,12.99055455,78.596,78.542,0.49978336]
[1771953280774,0.26726075,78.595,78.542,0.49978336]
[1771953280978,0.26726075,78.595,78.545,0.49978336]
[1771953282891,0.1,78.6,78.547,0.49978336]
[1771953283068,0.26726075,78.598,78.547,0.49978336]
[1771953284986,12.72313192,78.597,78.548,44.55874115]
[1771953285186,0.26726075,78.596,78.549,0.49978336]
[1771953286289,0.1,78.6,78.551,0.49978336]
[1771953286290,0.26726075,78.594,78.551,0.49978336]
[1771953288394,0.26726075,78.592,78.552,12.73042061]
[1771953288772,0.26726075,78.592,78.553,0.49978336]
[1771953290492,0.36726075,78.6,78.553,0.49978336]
[1771953290692,0.36726075,78.6,78.555,0.49978336]
[1771953291480,0.26726075,78.599,78.555,0.49978336]
[1771953292003,0.26726075,78.599,78.548,0.49978336]
[1771953292581,0.26726075,78.597,78.549,12.73090682]
[1771953292786,0.26726075,78.597,78.55,0.49978336]
[1771953293797,0.26726075,78.589,78.522,0.49978336]
[1771953294311,0.26726075,78.589,78.525,0.49978336]
[1771953296194,0.26726075,78.589,78.521,3.69383402]
[1771953296195,0.26726075,78.587,78.527,0.46623385]
[1771953296383,0.26726075,78.579,78.527,0.46623385]
[1771953296583,0.26726075,78.569,78.527,0.46623385]
[1771953296998,0.26726075,78.569,78.503,0.46623385]
[1771953298602,0.26726075,78.567,78.505,0.46623385]
[1771953299304,0.26726075,78.559,78.505,0.46623385]
[1771953299624,0.26726075,78.567,78.505,0.46623385]
[1771953299799,0.26726075,78.549,78.505,0.46623385]
[1771953300305,0.26726075,78.539,78.5,12.73877251]
[1771953300484,0.26726075,78.539,78.498,0.46623385]
[1771953300685,0.26726075,78.537,78.498,13.20535012]
[1771953300886,0.26726075,78.537,78.498,0.46623385]
[1771953301084,44.56441467,78.538,78.484,31.85350895]
[1771953301085,0.26726075,78.529,78.485,12.74128814]
[1771953301388,44.56441467,78.538,78.426,51.00321605]
[1771953301389,0.26726075,78.509,78.444,0.46623385]
[1771953301586,0.26726075,78.499,78.444,0.46623385]
[1771953302005,0.26726075,78.489,78.444,0.46623385]
[1771953302190,0.26726075,78.499,78.444,0.46623385]
[1771953302504,0.26726075,78.529,78.448,0.46623385]
[1771953302690,0.26726075,78.527,78.454,0.46623385]
[1771953303894,44.55477054,78.555,78.454,0.46623385]
[1771953304217,0.26726075,78.554,78.476,0.46623385]
[1771953304400,0.26726075,78.554,78.48,3.69383402]
[1771953304611,0.26726075,78.552,78.484,3.69383402]
[1771953304902,0.26726075,78.549,78.484,3.69383402]
[1771953305214,0.26726075,78.529,78.481,12.74193753]
[1771953305898,0.26726075,78.529,78.481,44.59678137]
[1771953306210,0.26726075,78.529,78.482,0.46623385]
[1771953309109,0.26726075,78.527,78.484,0.46623385]
[1771953309508,0.26726075,78.527,78.451,50.98721174]
[1771953309509,0.26726075,78.519,78.476,0.46623385]
[1771953309700,0.26726075,78.509,78.454,0.46623385]
[1771953310216,0.26726075,78.499,78.454,0.46623385]
[1771953311113,44.58712323,78.498,78.446,0.46623385]
[1771953311296,0.26726075,78.489,78.446,0.46623385]
[1771953311612,0.26726075,78.479,78.446,0.46623385]
[1771953313596,0.26726075,78.477,78.448,0.46623385]
[1771953314596,0.26726075,78.477,78.44,0.2]
[1771953314797,13.34062512,78.47,78.423,0.46623385]
[1771953314995,0.06726075,78.469,78.423,0.46623385]
[1771953315211,0.06726075,78.469,78.424,0.46636962]
[1771953315513,0.06726075,78.439,78.394,0.46636962]
[1771953315698,0.06726075,78.429,78.385,0.46636962]
[1771953315898,0.06726075,78.449,78.385,0.46636962]
[1771953316815,0.06726075,78.458,78.385,0.46636962]
[1771953317511,0.06726075,78.467,78.391,5.36086188]
[1771953317719,0.06726075,78.467,78.395,0.46636962]
[1771953319910,0.06726075,78.467,78.4,0.46636962]
[1771953320415,13.34062512,78.46,78.4,0.46636962]
[1771953320611,0.06726075,78.458,78.4,0.46636962]
[1771953320812,0.06726075,78.458,78.416,0.46636962]
[1771953323313,0.06726075,78.489,78.421,0.46636962]
[1771953323519,0.06726075,78.479,78.421,0.46636962]
[1771953324502,0.06726075,78.489,78.421,0.46636962]
[1771953325419,0.06726075,78.489,78.426,0.4847702]
[1771953327222,0.06726075,78.479,78.426,0.4847702]
[1771953327526,0.06726075,78.459,78.427,12.75071085]
[1771953328918,0.06726075,78.449,78.417,0.4847702]
[1771953329115,0.06726075,78.449,78.411,0.4847702]
[1771953329418,12.81439583,78.449,78.384,0.4847702]
[1771953329621,0.06726075,78.459,78.387,0.4847702]
[1771953330114,210.22069719,78.489,78.387,0.4847702]
[1771953330115,0.06726075,78.439,78.387,0.4847702]
[1771953330819,13.34062512,78.44,78.387,0.4847702]
[1771953331122,0.06726075,78.442,78.387,0.4847702]
[1771953331715,12.74713508,78.449,78.389,0.4847702]
[1771953331919,12.74713508,78.449,78.392,0.4847702]
[1771953333423,0.06726075,78.451,78.397,0.4847702]
[1771953333925,13.40788587,78.47,78.397,0.4847702]
[1771953334130,0.06726075,78.469,78.397,0.4847702]
[1771953334316,0.06726075,78.449,78.397,0.4847702]
[1771953335317,0.06726075,78.439,78.397,0.4847702]
[1771953335830,0.06726075,78.438,78.398,13.24019763]
[1771953336030,0.06726075,78.438,78.399,0.4847702]
[1771953336328,13.40788587,78.43,78.399,0.4847702]
[1771953336525,0.06726075,78.438,78.399,0.4847702]
[1771953337825,0.06726075,78.429,78.384,0.4847702]
[1771953338930,0.06726075,78.429,78.385,0.4847702]
[1771953340233,0.06726075,78.419,78.384,12.75770565]
[1771953340411,0.06726075,78.409,78.38,12.95827562]
[1771953340725,0.06726075,78.409,78.38,0.2]
[1771953340929,0.06726075,78.399,78.38,0.2]
[1771953341619,13.47859687,78.41,78.38,0.2]
[1771953341822,0.06726075,78.409,78.38,0.2]
[1771953342214,0.06726075,78.399,78.365,0.4847702]
[1771953342528,0.06726075,78.399,78.365,13.24552078]
[1771953343029,0.06726075,78.389,78.37,0.13273925]
[1771953343431,12.75526473,78.399,78.372,0.5]
[1771953344422,12.75526473,78.399,78.37,0.13273925]
[1771953344423,13.41133612,78.39,78.37,0.13273925]
[1771953344927,12.75678992,78.39,78.37,0.13273925]
[1771953345323,12.75568833,78.397,78.371,0.5]
[1771953345723,13.41133612,78.39,78.37,0.13273925]
[1771953347024,13.41133612,78.39,78.333,3.69383402]
[1771953347025,13.41133612,78.37,78.334,0.5]
[1771953347222,13.41133612,78.38,78.345,12.76393009]
[1771953347535,13.41133612,78.37,78.345,12.7640488]
[1771953347726,13.41133612,78.37,78.344,0.5]
[1771953348034,13.41133612,78.38,78.344,0.5]
[1771953348218,13.21133612,78.38,78.346,12.76376625]